[Event "EYCC 2017"]
[Site "Mamaia"]
[Date "2017.09.14"]
[Round "9"]
[White "Mikheeva, Galina"]
[Black "Markus, Molli Amina"]
[Result "1/2-1/2"]
[ECO "C02"]
[WhiteElo "1596"]
[BlackElo "1520"]
[Annotator "NA RC"]
[PlyCount "81"]
[EventDate "2017.??.??"]
[EventType "swiss"]
[EventCountry "ROU"]
[SourceTitle "playchess.com"]
[Source "ChessBase"]
[SourceQuality "1"]
[TimeControl "40/5400+30:1800+30"]

1. e4 {[%emt 0:00:00]} e6 {[%emt 0:01:39]} 2. d4 {[%emt 0:00:00]} d5 {[%emt 0:01:46]} 3. e5 {[%emt 0:00:39]} c5 {[%emt 0:03:07]} 4. c3 {[%emt 0:00:05]} Nc6 {[%emt 0:01:14]} 5. Nf3 {[%emt 0:00:20]} Qb6 {[%emt 0:01:33]} 6. a3 {[%emt 0:00:17]} c4 {[%emt 0:01:56]} 7. Nbd2 {[%emt 0:00:14]} Na5 {[%emt 0:02:43]} 8. h4 {[%emt 0:04:45]} Bd7 {[%emt 0:03:30]} 9. g3 {[%emt 0:01:39]} Ne7 {[%emt 0:02:04]} 10. Bh3 {[%emt 0:01:27]} Qc7 {[%emt 0:02:55]} 11. O-O {[%emt 0:03:17]} Nc8 {[%emt 0:02:41]} 12. Ne1 {[%emt 0:07:06]} Nb6 {[%emt 0:03:58]} 13. f4 {[%emt 0:01:50]} O-O-O {[%emt 0:02:59]} 14. Qf3 {[%emt 0:11:37]} g6 {[%emt 0:03:21]} 15. h5 {[%emt 0:12:29]} Be7 {[%emt 0:04:57]} 16. Rb1 {[%emt 0:15:55]} Rhg8 {[%emt 0:03:06]} 17. Kh2 {[%emt 0:02:32]} Ba4 {[%emt 0:04:02]} 18. Rg1 {[%emt 0:10:48]} Kb8 {[%emt 0:05:07]} 19. Kg2 {[%emt 0:01:47]} Qd7 {[%emt 0:07:36]} 20. Kf2 {[%emt 0:02:33]} Qb5 {[%emt 0:03:56]} 21. Rh1 {[%emt 0:03:41]} Nb3 {[%emt 0:01:04]} 22. Nxb3 Qxb3 {[%emt 0:00:21]} 23. Ra1 {[%emt 0:01:10]} Bd7 {[%emt 0:03:11]} 24. hxg6 {[%emt 0:00:48]} hxg6 {[%emt 0:01:00]} 25. Qe2 {[%emt 0:02:18]} Qb5 {[%emt 0:05:29]} 26. Nf3 {[%emt 0:01:00]} Rg7 {[%emt 0:01:30]} 27. Qc2 {[%emt 0:02:09]} Rdg8 {[%emt 0:02:31]} 28. Bf1 {[%emt 0:01:14]} Qa4 {[%emt 0:03:07]} 29. Qe2 {[%emt 0:02:11]} Qc6 {[%emt 0:02:17]} 30. Bg2 {[%emt 0:03:27]} Qc8 {[%emt 0:01:46]} 31. Be3 {[%emt 0:00:27]} Rh8 {[%emt 0:02:21]} 32. g4 {[%emt 0:03:57]} Rgh7 {[%emt 0:01:18]} 33. g5 {[%emt 0:01:51]} Na4 {[%emt 0:02:41]} 34. Rag1 {[%emt 0:00:53]} Rxh1 {[%emt 0:03:12]} 35. Bxh1 {[%emt 0:00:55]} Qf8 {[%emt 0:00:56]} 36. Bc1 {[%emt 0:00:47]} Qc8 {[%emt 0:01:57]} 37. Bg2 {[%emt 0:00:17]} a5 {[%emt 0:01:53]} 38. Qd2 {[%emt 0:01:15]} b5 {[%emt 0:00:24]} 39. Kg3 {[%emt 0:00:55]} Qb7 {[%emt 0:00:40]} 40. Nh2 {[%emt 0:00:00]} Kc7 {[%emt 0:01:19]} 41. Qc2 {[%emt 0:03:09]} 1/2-1/2

[Event "EYCC 2017"]
[Site "Mamaia"]
[Date "2017.09.14"]
[Round "9"]
[White "Kanov, Nikola"]
[Black "Kolesov, Gordey"]
[Result "0-1"]
[ECO "B90"]
[WhiteElo "1590"]
[BlackElo "1672"]
[Annotator "NA RC"]
[PlyCount "152"]
[EventDate "2017.??.??"]
[EventType "swiss"]
[EventCountry "ROU"]
[SourceTitle "playchess.com"]
[Source "ChessBase"]
[SourceQuality "1"]
[TimeControl "40/5400+30:1800+30"]

1. e4 {[%emt 0:00:00]} c5 {[%emt 0:00:12]} 2. Nf3 {[%emt 0:00:45]} d6 {[%emt 0:00:12]} 3. d4 {[%emt 0:00:06]} cxd4 {[%emt 0:00:12]} 4. Nxd4 {[%emt 0:00:02]} Nf6 {[%emt 0:00:13]} 5. Nc3 {[%emt 0:00:06]} a6 {[%emt 0:00:16]} 6. f3 {[%emt 0:00:07]} e6 {[%emt 0:00:41]} 7. Be3 {[%emt 0:00:11]} b5 {[%emt 0:00:39]} 8. Qd2 Nbd7 {[%emt 0:00:49]} 9. O-O-O {[%emt 0:02:14]} b4 {[%emt 0:33:14]} 10. Nce2 {[%emt 0:02:36]} Ne5 {[%emt 0:00:54]} 11. Ng3 {[%emt 0:12:34]} Qa5 {[%emt 0:05:25]} 12. Kb1 {[%emt 0:01:13]} Bd7 {[%emt 0:03:19]} 13. Nb3 {[%emt 0:05:17]} Qa4 {[%emt 0:05:46]} 14. Bb6 {[%emt 0:09:34]} Qc6 {[%emt 0:09:29]} 15. Ba5 {[%emt 0:00:39]} Rc8 {[%emt 0:06:32]} 16. Nd4 {[%emt 0:10:45]} Qb7 {[%emt 0:03:21]} 17. Qxb4 {[%emt 0:01:48]} Qxb4 {[%emt 0:04:46]} 18. Bxb4 {[%emt 0:00:03]} Nc4 {[%emt 0:00:21]} 19. Nb3 {[%emt 0:06:01]} d5 {[%emt 0:00:49]} 20. Bxf8 {[%emt 0:01:23]} Rxf8 {[%emt 0:00:14]} 21. exd5 {[%emt 0:01:25]} Nxd5 {[%emt 0:00:23]} 22. Bxc4 {[%emt 0:02:11]} Rxc4 {[%emt 0:00:04]} 23. Ne4 {[%emt 0:01:23]} Ke7 {[%emt 0:01:03]} 24. Nec5 {[%emt 0:04:59]} Bb5 {[%emt 0:01:54]} 25. Rhe1 {[%emt 0:06:26]} Kf6 {[%emt 0:01:53]} 26. Ne4+ {[%emt 0:00:35]} Kg6 {[%emt 0:00:45]} 27. Nbc5 {[%emt 0:10:54]} Rc8 {[%emt 0:12:14]} 28. b3 {[%emt 0:00:43]} R4xc5 {[%emt 0:00:09]} 29. Nxc5 {[%emt 0:01:14]} Nc3+ {[%emt 0:00:58]} 30. Ka1 {[%emt 0:01:18]} Nxd1 {[%emt 0:00:06]} 31. Rxd1 {[%emt 0:02:02]} Rxc5 {[%emt 0:00:35]} 32. c4 {[%emt 0:00:04]} Bc6 {[%emt 0:01:22]} 33. Rd6 {[%emt 0:00:20]} a5 {[%emt 0:00:23]} 34. Kb2 {[%emt 0:00:20]} Kf6 {[%emt 0:00:20]} 35. Kc3 {[%emt 0:00:38]} Ke7 {[%emt 0:00:11]} 36. Rd2 {[%emt 0:00:11]} Rh5 {[%emt 0:01:31]} 37. h3 {[%emt 0:00:11]} e5 {[%emt 0:00:57]} 38. a3 {[%emt 0:01:03]} Rh6 {[%emt 0:02:15]} 39. b4 {[%emt 0:00:57]} axb4+ {[%emt 0:00:07]} 40. axb4 {[%emt 0:00:00]} e4 {[%emt 0:04:06]} 41. b5 {[%emt 0:01:22]} Bb7 {[%emt 0:01:05]} 42. fxe4 {[%emt 0:00:44]} Bxe4 {[%emt 0:01:21]} 43. c5 {[%emt 0:03:54]} Rg6 {[%emt 0:02:42]} 44. g4 {[%emt 0:01:26]} Rh6 {[%emt 0:08:05]} 45. Re2 {[%emt 0:03:57]} Re6 {[%emt 0:01:00]} 46. Rd2 {[%emt 0:07:47]} f6 {[%emt 0:07:53]} 47. c6 {[%emt 0:00:49]} Bxc6 {[%emt 0:04:25]} 48. bxc6 {[%emt 0:00:06]} Rxc6+ {[%emt 0:00:03]} 49. Kb2 {[%emt 0:00:10]} Rd6 {[%emt 0:01:14]} 50. Re2+ {[%emt 0:00:11]} Re6 {[%emt 0:00:08]} 51. Rh2 {[%emt 0:05:59]} Re3 {[%emt 0:00:24]} 52. Kc2 {[%emt 0:00:09]} Ke6 {[%emt 0:01:09]} 53. Kd2 {[%emt 0:00:23]} Ra3 {[%emt 0:00:07]} 54. Re2+ {[%emt 0:16:05]} Kf7 {[%emt 0:00:36]} 55. Re3 {[%emt 0:07:00]} Rxe3 {[%emt 0:01:39]} 56. Kxe3 {[%emt 0:00:04]} Ke6 {[%emt 0:00:12]} 57. Kd4 {[%emt 0:05:33]} g6 {[%emt 0:00:24]} 58. Ke4 {[%emt 0:00:23]} f5+ {[%emt 0:00:12]} 59. Kf4 {[%emt 0:00:07]} Kf6 {[%emt 0:01:19]} 60. h4 {[%emt 0:00:36]} h6 {[%emt 0:01:21]} 61. Kg3 {[%emt 0:00:47]} Ke5 {[%emt 0:00:58]} 62. Kf3 {[%emt 0:00:37]} f4 {[%emt 0:01:16]} 63. Ke2 {[%emt 0:00:30]} g5 {[%emt 0:00:36]} 64. hxg5 {[%emt 0:00:20]} hxg5 {[%emt 0:00:06]} 65. Kd3 {[%emt 0:00:31]} Kd5 {[%emt 0:00:06]} 66. Ke2 {[%emt 0:00:05]} Ke4 {[%emt 0:00:08]} 67. Kf2 {[%emt 0:00:00]} f3 {[%emt 0:00:11]} 68. Ke1 {[%emt 0:00:04]} Ke3 {[%emt 0:00:11]} 69. Kf1 {[%emt 0:00:11]} f2 {[%emt 0:00:07]} 70. Kg2 {[%emt 0:00:04]} Ke2 {[%emt 0:00:06]} 71. Kg3 {[%emt 0:00:06]} f1=Q {[%emt 0:00:17]} 72. Kh2 {[%emt 0:00:04]} Qf3 {[%emt 0:00:16]} 73. Kg1 {[%emt 0:00:11]} Qxg4+ {[%emt 0:00:10]} 74. Kh2 {[%emt 0:00:05]} Qh4+ {[%emt 0:00:06]} 75. Kg1 {[%emt 0:00:06]} Kf3 {[%emt 0:00:07]} 76. Kf1 {[%emt 0:00:03]} Qh1# {[%emt 0:00:07]} 0-1

[Event "EYCC 2017"]
[Site "Mamaia"]
[Date "2017.09.14"]
[Round "9"]
[White "Shubenkova, Veronika"]
[Black "Shvedova, Alexandra"]
[Result "1/2-1/2"]
[ECO "A48"]
[WhiteElo "1505"]
[BlackElo "1578"]
[Annotator "NA RC"]
[PlyCount "82"]
[EventDate "2017.??.??"]
[EventType "swiss"]
[EventCountry "ROU"]
[SourceTitle "playchess.com"]
[Source "ChessBase"]
[SourceQuality "1"]
[TimeControl "40/5400+30:1800+30"]

1. Nf3 {[%emt 0:02:04]} Nf6 {[%emt 0:00:08]} 2. d4 {[%emt 0:00:59]} g6 {[%emt 0:00:04]} 3. e3 {[%emt 0:05:16]} Bg7 {[%emt 0:00:15]} 4. Bd3 {[%emt 0:01:36]} O-O {[%emt 0:00:26]} 5. O-O {[%emt 0:01:22]} c5 {[%emt 0:00:40]} 6. c3 {[%emt 0:03:48]} d5 {[%emt 0:01:30]} 7. Ne5 {[%emt 0:04:47]} Qc7 {[%emt 0:03:26]} 8. f4 {[%emt 0:01:52]} Nc6 {[%emt 0:01:33]} 9. Nd2 {[%emt 0:03:11]} Rb8 {[%emt 0:00:50]} 10. Qe2 {[%emt 0:02:58]} a6 {[%emt 0:01:28]} 11. Ndf3 {[%emt 0:01:50]} b5 {[%emt 0:01:03]} 12. Nxc6 {[%emt 0:07:11]} Qxc6 {[%emt 0:01:55]} 13. Ne5 {[%emt 0:00:05]} Qc7 {[%emt 0:00:45]} 14. Bd2 {[%emt 0:06:44]} Ne8 {[%emt 0:08:58]} 15. h3 {[%emt 0:10:39]} Nd6 {[%emt 0:06:52]} 16. g4 {[%emt 0:14:10]} Ne4 {[%emt 0:08:56]} 17. Qg2 {[%emt 0:04:25]} Bb7 {[%emt 0:02:37]} 18. h4 {[%emt 0:03:46]} Kh8 {[%emt 0:06:06]} 19. g5 {[%emt 0:03:25]} Qc8 {[%emt 0:05:11]} 20. Bxe4 {[%emt 0:03:03]} dxe4 {[%emt 0:00:22]} 21. Qg3 {[%emt 0:02:08]} c4 {[%emt 0:04:15]} 22. Kg2 {[%emt 0:00:48]} f6 {[%emt 0:05:37]} 23. Ng4 {[%emt 0:00:20]} Qf5 {[%emt 0:01:03]} 24. Rh1 {[%emt 0:02:04]} Bc8 {[%emt 0:01:52]} 25. Nf2 {[%emt 0:00:34]} Bd7 {[%emt 0:04:13]} 26. h5 {[%emt 0:01:28]} gxh5 {[%emt 0:00:16]} 27. Rxh5 {[%emt 0:01:05]} Be8 {[%emt 0:00:11]} 28. Rh4 {[%emt 0:00:29]} Bg6 {[%emt 0:00:38]} 29. Qg4 {[%emt 0:02:01]} fxg5 {[%emt 0:02:53]} 30. Qxg5 {[%emt 0:00:51]} Qf7 {[%emt 0:00:59]} 31. Qg3 {[%emt 0:01:12]} Rg8 {[%emt 0:01:08]} 32. Kf1 {[%emt 0:03:09]} Bf5 {[%emt 0:02:16]} 33. Qh2 {[%emt 0:00:54]} Bf6 {[%emt 0:01:04]} 34. Rh5 {[%emt 0:00:30]} Bg6 {[%emt 0:00:34]} 35. Rh3 {[%emt 0:00:48]} Bf5 {[%emt 0:00:09]} 36. Rh5 {[%emt 0:00:04]} Bg6 {[%emt 0:00:55]} 37. Rh3 {[%emt 0:01:22]} Bf5 {[%emt 0:00:13]} 38. Rh6 {[%emt 0:00:52]} Rg6 {[%emt 0:01:39]} 39. Rh5 {[%emt 0:03:02]} e6 {[%emt 0:00:52]} 40. Rh6 {[%emt 0:00:00]} Qg7 {[%emt 0:01:15]} 41. Rxg6 {[%emt 0:01:56]} Qxg6 {[%emt 0:00:08]} 1/2-1/2

[Event "EYCC 2017"]
[Site "Mamaia"]
[Date "2017.09.14"]
[Round "9"]
[White "Svergina, Sofya"]
[Black "Kirtadze, Anastasia"]
[Result "1/2-1/2"]
[ECO "B56"]
[WhiteElo "1472"]
[BlackElo "1193"]
[Annotator "NA RC"]
[PlyCount "45"]
[EventDate "2017.??.??"]
[EventType "swiss"]
[EventCountry "ROU"]
[SourceTitle "playchess.com"]
[Source "ChessBase"]
[SourceQuality "1"]
[TimeControl "40/5400+30:1800+30"]

1. e4 {[%emt 0:00:00]} c5 {[%emt 0:00:07]} 2. Nf3 {[%emt 0:00:00]} d6 {[%emt 0:00:22]} 3. d4 {[%emt 0:00:00]} cxd4 {[%emt 0:00:07]} 4. Nxd4 {[%emt 0:00:20]} Nf6 {[%emt 0:00:09]} 5. Nc3 {[%emt 0:00:17]} Nc6 {[%emt 0:00:14]} 6. Be3 {[%emt 0:03:39]} Ng4 {[%emt 0:00:18]} 7. Bg5 {[%emt 0:00:09]} h6 {[%emt 0:00:11]} 8. Bh4 {[%emt 0:00:06]} g5 {[%emt 0:00:24]} 9. Bg3 {[%emt 0:00:05]} Bg7 {[%emt 0:00:18]} 10. Bb5 {[%emt 0:11:50]} Qb6 {[%emt 0:02:49]} 11. Bxc6+ {[%emt 0:01:13]} bxc6 {[%emt 0:00:26]} 12. Nb3 {[%emt 0:00:03]} Ne5 {[%emt 0:01:18]} 13. Bxe5 {[%emt 0:18:05]} Bxe5 {[%emt 0:00:12]} 14. O-O {[%emt 0:00:31]} h5 {[%emt 0:03:36]} 15. Rb1 {[%emt 0:02:51]} g4 {[%emt 0:06:07]} 16. Ne2 {[%emt 0:00:33]} h4 {[%emt 0:01:55]} 17. Kh1 {[%emt 0:01:16]} h3 {[%emt 0:06:29]} 18. g3 {[%emt 0:00:46]} Bb7 {[%emt 0:00:44]} 19. Nc3 {[%emt 0:02:52]} Rg8 {[%emt 0:02:07]} 20. f4 {[%emt 0:06:00]} Bh8 {[%emt 0:03:30]} 21. Qd2 {[%emt 0:02:04]} f5 {[%emt 0:37:32]} 22. Qf2 {[%emt 0:15:58]} Qc7 {[%emt 0:04:32]} 23. Kg1 {[%emt 0:04:06]} 1/2-1/2

[Event "EYCC 2017"]
[Site "Mamaia"]
[Date "2017.09.14"]
[Round "9"]
[White "Siekanska, Maria"]
[Black "Gasimova, Samra"]
[Result "0-1"]
[ECO "E71"]
[WhiteElo "1471"]
[BlackElo "1578"]
[Annotator "NA RC"]
[PlyCount "136"]
[EventDate "2017.??.??"]
[EventType "swiss"]
[EventCountry "ROU"]
[SourceTitle "playchess.com"]
[Source "ChessBase"]
[SourceQuality "1"]
[TimeControl "40/5400+30:1800+30"]

1. d4 {[%emt 0:00:00]} Nf6 {[%emt 0:00:09]} 2. c4 {[%emt 0:00:00]} g6 {[%emt 0:00:03]} 3. Nc3 {[%emt 0:00:00]} Bg7 {[%emt 0:00:07]} 4. e4 {[%emt 0:00:00]} d6 {[%emt 0:00:05]} 5. h3 {[%emt 0:00:00]} O-O {[%emt 0:00:05]} 6. Be3 {[%emt 0:00:07]} Nc6 {[%emt 0:02:53]} 7. Nf3 {[%emt 0:00:52]} Re8 {[%emt 0:07:53]} 8. Be2 {[%emt 0:00:54]} b6 {[%emt 0:05:28]} 9. O-O {[%emt 0:02:45]} Bb7 {[%emt 0:02:07]} 10. d5 {[%emt 0:00:11]} Ne5 {[%emt 0:00:32]} 11. Bf4 {[%emt 0:02:49]} Nfd7 {[%emt 0:01:40]} 12. Rc1 {[%emt 0:04:08]} Nxf3+ {[%emt 0:02:19]} 13. Bxf3 {[%emt 0:00:19]} Ne5 {[%emt 0:00:07]} 14. Be2 {[%emt 0:00:17]} c6 {[%emt 0:01:50]} 15. Re1 {[%emt 0:03:52]} cxd5 16. cxd5 {[%emt 0:00:22]} Rc8 {[%emt 0:06:51]} 17. Nb5 {[%emt 0:06:22]} a6 {[%emt 0:07:32]} 18. Nc3 {[%emt 0:02:28]} b5 {[%emt 0:08:41]} 19. a3 {[%emt 0:06:35]} Nc4 {[%emt 0:21:10]} 20. Bxc4 {[%emt 0:02:47]} Rxc4 {[%emt 0:00:15]} 21. Qd2 {[%emt 0:03:26]} Qc7 {[%emt 0:04:36]} 22. Bg5 {[%emt 0:14:28]} Rc8 {[%emt 0:03:14]} 23. Rc2 {[%emt 0:04:40]} Bxc3 {[%emt 0:03:17]} 24. Rxc3 {[%emt 0:00:09]} Rxc3 {[%emt 0:00:13]} 25. Qxc3 {[%emt 0:00:07]} f6 {[%emt 0:01:14]} 26. Bd2 {[%emt 0:01:46]} Qb6 {[%emt 0:03:26]} 27. Qd3 {[%emt 0:04:00]} a5 {[%emt 0:02:15]} 28. Be3 {[%emt 0:00:54]} Qa6 {[%emt 0:02:38]} 29. Rc1 {[%emt 0:02:40]} Rxc1+ {[%emt 0:00:11]} 30. Bxc1 {[%emt 0:00:08]} b4 {[%emt 0:00:32]} 31. Qc2 {[%emt 0:05:56]} bxa3 {[%emt 0:00:47]} 32. bxa3 {[%emt 0:00:08]} Qb6 {[%emt 0:00:38]} 33. Bh6 {[%emt 0:00:48]} Kf7 {[%emt 0:01:44]} 34. Be3 {[%emt 0:01:31]} Qd8 {[%emt 0:03:10]} 35. Qb3 {[%emt 0:00:55]} Qc7 {[%emt 0:00:40]} 36. Kh2 {[%emt 0:00:24]} Qd7 {[%emt 0:01:25]} 37. Bd4 {[%emt 0:09:28]} a4 {[%emt 0:02:10]} 38. Qe3 {[%emt 0:02:06]} Qb5 {[%emt 0:01:55]} 39. Qh6 {[%emt 0:00:43]} Kg8 {[%emt 0:00:06]} 40. Qd2 {[%emt 0:00:00]} Ba6 {[%emt 0:01:32]} 41. Be3 {[%emt 0:09:34]} Kf7 {[%emt 0:06:27]} 42. g4 {[%emt 0:01:25]} g5 {[%emt 0:03:13]} 43. h4 {[%emt 0:02:35]} gxh4 {[%emt 0:06:07]} 44. g5 {[%emt 0:02:04]} Qe2 {[%emt 0:03:19]} 45. Qxe2 {[%emt 0:02:56]} Bxe2 {[%emt 0:00:06]} 46. Kg2 {[%emt 0:00:08]} Bd3 {[%emt 0:00:48]} 47. f3 {[%emt 0:00:14]} f5 {[%emt 0:00:26]} 48. exf5 {[%emt 0:01:03]} Bxf5 49. Bf2 Bd3 {[%emt 0:01:58]} 50. Bxh4 {[%emt 0:00:46]} Bc4 {[%emt 0:00:14]} 51. f4 {[%emt 0:01:19]} Bxd5+ {[%emt 0:00:15]} 52. Kh3 {[%emt 0:00:53]} Kg6 {[%emt 0:01:24]} 53. Kg4 {[%emt 0:01:37]} Be6+ {[%emt 0:00:14]} 54. Kf3 {[%emt 0:00:35]} Kf5 {[%emt 0:00:24]} 55. g6 {[%emt 0:01:05]} Kxg6 {[%emt 0:01:09]} 56. Bxe7 {[%emt 0:00:23]} d5 {[%emt 0:00:06]} 57. Bc5 {[%emt 0:01:28]} Kf5 {[%emt 0:00:24]} 58. Bf2 {[%emt 0:00:57]} h5 {[%emt 0:00:21]} 59. Be1 {[%emt 0:03:28]} d4 {[%emt 0:01:18]} 60. Bg3 {[%emt 0:00:47]} d3 {[%emt 0:00:25]} 61. Ke3 {[%emt 0:03:00]} Bc4 {[%emt 0:00:10]} 62. Be1 {[%emt 0:02:07]} Kg4 {[%emt 0:00:31]} 63. Kd4 {[%emt 0:02:33]} Bb5 {[%emt 0:01:38]} 64. Ke3 {[%emt 0:01:27]} h4 {[%emt 0:00:12]} 65. Bf2 {[%emt 0:01:08]} h3 {[%emt 0:00:12]} 66. Bg1 {[%emt 0:00:11]} Kg3 {[%emt 0:00:08]} 67. f5 {[%emt 0:00:03]} Kg2 {[%emt 0:00:32]} 68. Kd4 {[%emt 0:00:51]} d2 {[%emt 0:00:12]} 0-1

[Event "EYCC 2017"]
[Site "Mamaia"]
[Date "2017.09.14"]
[Round "9"]
[White "Yonal, Timur"]
[Black "Vetokhin, Savva"]
[Result "0-1"]
[ECO "E66"]
[WhiteElo "1437"]
[BlackElo "1703"]
[Annotator "NA RC"]
[PlyCount "86"]
[EventDate "2017.??.??"]
[EventType "swiss"]
[EventCountry "ROU"]
[SourceTitle "playchess.com"]
[Source "ChessBase"]
[SourceQuality "1"]
[TimeControl "40/5400+30:1800+30"]

1. Nf3 g6 2. g3 Bg7 3. Bg2 Nf6 4. O-O O-O 5. d4 d6 6. c4 c5 7. Nc3 Nc6 8. d5 Na5 9. Qd3 a6 10. e4 b5 11. cxb5 axb5 12. Re1 c4 13. Qd1 b4 14. Nb5 Nb3 15. Bf4 Nxa1 16. Qxa1 Nh5 17. e5 Nxf4 18. gxf4 Ra5 19. Nbd4 Rxd5 20. Nc6 Qd7 21. Nfd4 Rxd4 22. Nxd4 dxe5 23. Nc6 Bb7 24. Nxe5 Bxe5 25. Rxe5 Qg4 26. Rg5 Qxf4 27. Rg3 Bxg2 28. Kxg2 Rd8 29. Qe1 Rd2 30. Rf3 Qg4+ 31. Rg3 Qd4 32. Rf3 e5 33. Re3 Qxb2 34. Rxe5 Rxf2+ 35. Qxf2 Qxe5 36. Qb6 c3 37. Qxb4 c2 38. Qd2 Qb2 39. Kf3 c1=Q 40. Qd8+ Kg7 41. Ke4 Qe2+ 42. Kd5 Qd3+ 43. Ke5 Qce3# 0-1

[Event "EYCC 2017"]
[Site "Mamaia"]
[Date "2017.09.14"]
[Round "9"]
[White "Bartodziej, Bartosz"]
[Black "Dimitrov, Martin Il"]
[Result "0-1"]
[ECO "B06"]
[WhiteElo "1402"]
[BlackElo "1645"]
[Annotator "NA RC"]
[PlyCount "60"]
[EventDate "2017.??.??"]
[EventType "swiss"]
[EventCountry "ROU"]
[SourceTitle "playchess.com"]
[Source "ChessBase"]
[SourceQuality "1"]
[TimeControl "40/5400+30:1800+30"]

1. d4 {[%emt 0:00:00]} g6 {[%emt 0:00:19]} 2. e4 {[%emt 0:00:14]} Bg7 {[%emt 0:01:11]} 3. Nc3 {[%emt 0:00:35]} c5 {[%emt 0:00:30]} 4. dxc5 {[%emt 0:01:02]} Bxc3+ {[%emt 0:00:59]} 5. bxc3 {[%emt 0:00:19]} Qa5 {[%emt 0:00:21]} 6. Qd4 {[%emt 0:01:29]} Nf6 {[%emt 0:00:12]} 7. Qb4 {[%emt 0:01:42]} Qxb4 {[%emt 0:01:30]} 8. cxb4 {[%emt 0:00:25]} Nxe4 {[%emt 0:00:18]} 9. Bb2 {[%emt 0:01:23]} O-O {[%emt 0:00:49]} 10. Bd3 {[%emt 0:01:01]} Nf6 {[%emt 0:00:31]} 11. Nf3 {[%emt 0:05:11]} Nd5 {[%emt 0:01:41]} 12. a3 {[%emt 0:04:50]} b6 {[%emt 0:01:39]} 13. Be4 {[%emt 0:05:55]} e6 {[%emt 0:03:04]} 14. cxb6 {[%emt 0:05:57]} axb6 {[%emt 0:00:59]} 15. h4 {[%emt 0:04:49]} Ra7 {[%emt 0:01:26]} 16. Bxd5 {[%emt 0:04:22]} exd5 {[%emt 0:01:01]} 17. h5 {[%emt 0:02:00]} Re8+ {[%emt 0:00:20]} 18. Kd2 {[%emt 0:03:34]} d6 {[%emt 0:01:28]} 19. hxg6 {[%emt 0:07:38]} fxg6 {[%emt 0:00:33]} 20. Nh4 {[%emt 0:09:26]} Nc6 {[%emt 0:04:20]} 21. Rh2 {[%emt 0:04:59]} Rae7 {[%emt 0:01:39]} 22. Rah1 {[%emt 0:03:53]} Re2+ {[%emt 0:04:40]} 23. Kc1 {[%emt 0:02:04]} Rxf2 {[%emt 0:00:40]} 24. Nxg6 {[%emt 0:12:20]} Ree2 {[%emt 0:01:30]} 25. Nf4 {[%emt 0:06:23]} Rxc2+ {[%emt 0:02:01]} 26. Kd1 {[%emt 0:01:59]} Rxb2 {[%emt 0:02:15]} 27. Kc1 {[%emt 0:01:49]} Ra2 28. Kb1 Bf5+ 29. Nd3 Bxd3+ 30. Kc1 Ra1# 0-1

[Event "EYCC 2017"]
[Site "Mamaia"]
[Date "2017.09.14"]
[Round "9"]
[White "Mustu, Hatice Asli"]
[Black "Andrukhovich, Elizaveta"]
[Result "0-1"]
[ECO "D02"]
[WhiteElo "1365"]
[BlackElo "1465"]
[Annotator "NA RC"]
[PlyCount "82"]
[EventDate "2017.??.??"]
[EventType "swiss"]
[EventCountry "ROU"]
[SourceTitle "playchess.com"]
[Source "ChessBase"]
[SourceQuality "1"]
[TimeControl "40/5400+30:1800+30"]

1. d4 {[%emt 0:00:00]} d5 {[%emt 0:00:05]} 2. Bf4 {[%emt 0:00:00]} Nf6 {[%emt 0:00:04]} 3. Nf3 {[%emt 0:00:00]} c5 {[%emt 0:00:22]} 4. c3 {[%emt 0:00:00]} e6 {[%emt 0:00:09]} 5. e3 {[%emt 0:00:04]} Bd6 {[%emt 0:00:29]} 6. Ne5 {[%emt 0:00:35]} Nc6 {[%emt 0:00:38]} 7. Bb5 {[%emt 0:00:43]} Bd7 {[%emt 0:01:38]} 8. Nxf7 {[%emt 0:04:24]} Kxf7 {[%emt 0:02:51]} 9. Bxd6 {[%emt 0:00:34]} cxd4 {[%emt 0:01:27]} 10. exd4 {[%emt 0:03:40]} Nxd4 {[%emt 0:04:13]} 11. Bxd7 {[%emt 0:00:44]} Qxd7 {[%emt 0:00:29]} 12. Bg3 {[%emt 0:01:41]} Nf5 {[%emt 0:02:26]} 13. O-O {[%emt 0:01:05]} Nxg3 {[%emt 0:01:59]} 14. fxg3 {[%emt 0:00:12]} Rhf8 {[%emt 0:01:57]} 15. Nd2 {[%emt 0:01:27]} Kg8 {[%emt 0:01:33]} 16. Kh1 {[%emt 0:03:55]} e5 {[%emt 0:05:06]} 17. Nf3 {[%emt 0:00:26]} e4 {[%emt 0:03:01]} 18. Nd4 {[%emt 0:00:16]} Ng4 {[%emt 0:02:04]} 19. Rxf8+ {[%emt 0:05:53]} Rxf8 {[%emt 0:00:14]} 20. Kg1 {[%emt 0:00:11]} Rf2 {[%emt 0:03:48]} 21. Qc1 {[%emt 0:03:29]} e3 {[%emt 0:13:57]} 22. h3 {[%emt 0:02:08]} e2 {[%emt 0:02:18]} 23. Qg5 {[%emt 0:02:37]} Nf6 {[%emt 0:09:02]} 24. Re1 {[%emt 0:01:33]} Qa4 {[%emt 0:25:55]} 25. Ne6 {[%emt 0:17:58]} Rf1+ {[%emt 0:02:00]} 26. Kh2 {[%emt 0:00:05]} g6 {[%emt 0:05:42]} 27. Qh6 {[%emt 0:02:23]} Nh5 {[%emt 0:00:31]} 28. Ng5 {[%emt 0:10:33]} Qd1 {[%emt 0:05:19]} 29. Qxh7+ {[%emt 0:00:37]} Kf8 {[%emt 0:00:06]} 30. Qh8+ {[%emt 0:02:34]} Ke7 {[%emt 0:00:20]} 31. Qe5+ {[%emt 0:02:27]} Kd7 {[%emt 0:00:29]} 32. Qe6+ {[%emt 0:00:22]} Kc7 {[%emt 0:00:18]} 33. Qe7+ {[%emt 0:00:22]} Kc6 {[%emt 0:01:22]} 34. Qe6+ {[%emt 0:00:59]} Kb5 {[%emt 0:01:42]} 35. Qd7+ {[%emt 0:06:23]} Kc4 {[%emt 0:01:20]} 36. Qg4+ {[%emt 0:01:53]} Kd3 {[%emt 0:00:35]} 37. Qd4+ {[%emt 0:03:24]} Kc2 {[%emt 0:00:47]} 38. Qa4+ {[%emt 0:00:43]} Kb1 {[%emt 0:00:49]} 39. Rxd1+ {[%emt 0:07:25]} exd1=Q {[%emt 0:00:30]} 40. Qxd1+ {[%emt 0:00:00]} Rxd1 {[%emt 0:00:08]} 41. g4 {[%emt 0:00:55]} Nf4 0-1